Cogmind - Beta 14 @@@ ROGUE MODE // 2024.12.07 @ 19:01:53 Player: GordnCZ Result: Smashed by cave-in Performance ------------- Evolutions (0) 0 Regions Visited (1) 200 Robots Destroyed (11) 55 Value Destroyed (205) 205 Prototype IDs (0) 0 Alien Tech Used (0) 0 Bonus (0) 0 TOTAL SCORE: 460 Bonus ------- None Cogmind --------- Core Integrity 0/250 Matter 183/300 Energy 48/100 System Corruption 27% Temperature Cool (0) Movement Core (50) Location -10/Materials Parts ------- > --- POWER (1) -------- (None) > --- PROPULSION (2) --- (None) > --- UTILITY (2) ------ (None) > --- WEAPON (2) ------- Small Laser Light Assault Rifle > --- INVENTORY (5) ---- (None) Peak State ------------ > --- POWER ------------ Ion Engine > --- PROPULSION ------- Light Treads Light Treads > --- UTILITY ---------- Small Storage Unit Seismic Detector > --- WEAPON ----------- Small Laser Light Assault Rifle > --- INVENTORY -------- Light Ion Engine Small Laser Mining Laser [Rating: 7] Favorites ----------- Power Ion Engine Engine Ion Engine Propulsion Light Treads Treads Light Treads Utility Heat Sink Device Heat Sink Storage Small Storage Unit Weapon Small Laser Energy Gun Small Laser Ballistic Gun Light Assault Rifle Special Weapon Mining Laser Build | -11 -10 ------- Run | Yrd Mat Slots Evolved . | . . Power . | . . Propulsion . | . . Utility . | . . Weapon . | . . Parts Attached 22 | 11 11 Power 3 | 2 1 Engine 3 | 2 1 Core . | . . Reactor . | . . Propulsion 2 | 2 . Treads 2 | 2 . Leg . | . . Wheel . | . . Hover . | . . Flight . | . . Utility 6 | 3 3 Device 4 | 2 2 Storage 2 | 1 1 Processor . | . . Hackware . | . . Protection . | . . Artifact . | . . Weapon 11 | 4 7 Energy Gun 4 | 1 3 Energy Cannon . | . . Ballistic Gun 3 | 1 2 Ballistic Cannon . | . . Launcher . | . . Special Weapon 4 | 2 2 Impact Weapon . | . . Slashing Weapon . | . . Piercing Weapon . | . . Special Melee Weapon . | . . Unidentified Prototypes . | . . Parts Lost 10 | . 10 Power 2 | . 2 Propulsion 2 | . 2 Utility 3 | . 3 Weapon 3 | . 3 Highest Loss Streak 5 | . 5 To Critical Strikes . | . . Average Slot Usage (%) 62 | . 62 Engine 4 | . 4 Treads 27 | . 27 Device 15 | . 15 Storage 3 | . 3 Energy Gun 4 | . 4 Special Weapon 5 | . 5 Peak Build Rating 7 | 7 7 Average Rating 5 | 6 4 On Entrance 3 | . 7 Naked Turns . | . . Heaviest Build 13 | 13 13 Greatest Support 40 | 40 40 Greatest Overweight (x) . | . . Average Overweight (x) . | . . Largest Inventory Capacity 8 | 8 8 Average Capacity 6 | 7 5 Most Carried 5 | 5 5 Average Carried 3 | 2 4 Final Capacity 8 | 8 5 Final Carried 5 | 5 . Class Distribution -------------------- 92% | Mutant 7% | Scavenger-Mutant Dominant Class ---------------- Mutant | -10/Materials Resources | -11 -10 ----------- Run | Yrd Mat Matter Collected 371 | 321 50 Remotely . | . . Salvage Created 377 | 162 215 Parts 25 | 14 11 Haulers Intercepted . | . . Recyclers Shooed 1 | 1 . Parts Field Recycled . | . . Retrieved Matter . | . . Parts Self-Destructed . | . . Prevented . | . . Kills | -11 -10 ------- Run | Yrd Mat Combat Hostiles Destroyed 5 | . 5 Guns 5 | . 5 Classes Destroyed 4 | 3 1 Worker 1 | 1 . Tunneler 4 | 4 . Recycler 1 | 1 . Grunt 5 | . 5 Best Kill Streak 3 | 3 2 Combat Bots Only 2 | . 2 Max Kills in Single Turn 1 | 1 1 Gunslinging . | . . Exploded . | . . Melee . | . . Uniques/NPCs Destroyed . | . . Combat | -11 -10 -------- Run | Yrd Mat Hostile Shots Fired 39 | . 39 Missed 12 | . 12 Damage Taken 1314 | . 1314 Core 251 | . 251 Absorbed by Shields . | . . Core Remaining (%) 100 | 100 . Volleys Fired 98 | 32 66 Largest 2 | 2 2 Hottest 200 | 140 200 Shots Fired 182 | 60 122 Gun 129 | 43 86 Cannon . | . . Launcher . | . . Special 53 | 17 36 Kinetic 29 | 11 18 Thermal 153 | 49 104 Explosive . | . . Electromagnetic . | . . Robot Hit Streak 17 | 17 10 Robot Miss Streak 2 | 1 2 Penetration Max . | . . Secondary Targets . | . . Shots Hit Robots 56 | 25 31 Core Hits 20 | 9 11 Critical Kills 1 | 1 . Critical Parts Destroyed . | . . Critical Strikes 1 | 1 . Destroy 1 | 1 . Melee Attacks . | . . Impact . | . . Slashing . | . . Piercing . | . . Sneak Attacks . | . . Combat Hostiles . | . . Follow-up Attacks . | . . Damage Inflicted 651 | 278 373 Guns 575 | 230 345 Cannons . | . . Explosions . | . . Melee . | . . Ramming 4 | . 4 Kinetic 63 | 63 . Thermal 584 | 215 369 Explosive . | . . Electromagnetic . | . . Impact . | . . Slashing . | . . Piercing . | . . Highest Corruption 27 | . 27 Average Corruption 16 | . 16 Corruption Purged . | . . Corruption Blocked . | . . Effects 40 | . 40 Message Errors 15 | . 15 Matter Fused 9 | . 9 Heat Flow Errors 2 | . 2 Energy Discharges 4 | . 4 Data Loss (minor) 4 | . 4 Data Loss (major) 2 | . 2 Misfires 1 | . 1 Weapon Failures 3 | . 3 Overload Shots . | . . Overflow Damage 4 | . 4 Projectiles 4 | . 4 Explosions . | . . Melee . | . . Knockbacks . | . . Impact . | . . Kinetic . | . . Secondary . | . . Self-Inflicted Damage . | . . Shots . | . . Rammed 2 | . 2 Targets Rammed 2 | . 2 Kicked . | . . Crushed . | . . Highest Temperature 486 | 338 486 Average Temperature 144 | 110 169 Received Heat Transfer 162 | . 162 Effects 3 | . 3 Shutdowns 1 | . 1 Damage (minor) 2 | . 2 Siege Activations . | . . Robots Corrupted . | . . Combat Hostiles . | . . Parts Fried . | . . Impact Corruptions . | . . Robots Melted . | . . Combat Hostiles . | . . Parts Melted 1 | . 1 Heat Transferred 1300 | 475 825 Parts Sabotaged . | . . Parts Stolen . | . . Parts Stripped . | . . Power Chain Reactions . | . . Alert | -11 -10 ------- Run | Yrd Mat Peak Influence 175 | 25 175 Initial 3 | . 3 Average 30 | 14 37 Maximum Alert Level . | . . Low Security (%) 100 | 100 100 Level 1 . | . . Level 2 . | . . Level 3 . | . . Level 4 . | . . Level 5 . | . . High Security . | . . Max Security . | . . Squads Dispatched 1 | . 1 Investigation 1 | . 1 Extermination . | . . Reinforcement . | . . Assault . | . . Garrison . | . . Intercept . | . . Searches Triggered . | . . Construction Impeded . | . . Haulers Reinforced . | . . Active Scanning Responses . | . . Cargo Convoy Interrupts . | . . Stealth | -11 -10 --------- Run | Yrd Mat Distress Signals 1 | . 1 Communications Jammed . | . . Distress Signals . | . . Times Spotted 9 | . 9 Peak Tracking Total 4 | . 4 Tactical Retreats 1 | . 1 Traps | -11 -10 ------- Run | Yrd Mat Traps Triggered . | . . Indirectly . | . . Trap Hack Attempts . | . . Triggered . | . . Disarmed . | . . Reprogrammed . | . . Reused . | . . Traps Extracted . | . . Installed . | . . Triggered . | . . Machines | -11 -10 ---------- Run | Yrd Mat Machines Disabled . | . . Max in Single Turn . | . . Machines Repaired . | . . Machines Dismantled . | . . Machines Sabotaged . | . . Overloaded Fab Kills . | . . Hacking | -11 -10 --------- Run | Yrd Mat Machines Accessed 2 | . 2 Terminals 2 | . 2 Fabricators . | . . Repair Stations . | . . Recycling Units . | . . Scanalyzers . | . . Garrison Access . | . . Total Hacks 6 | . 6 Successful 2 | . 2 Failed 4 | . 4 Catastrophic 1 | . 1 Database Lockouts . | . . Manual . | . . Terminals 6 | . 6 Fabricators . | . . Repair Stations . | . . Recycling Units . | . . Scanalyzers . | . . Garrison Access . | . . Terminal Hacks 2 | . 2 Surveillance Status 1 | . 1 Recall Investigation 1 | . 1 Fabricator Hacks . | . . Repair Station Hacks . | . . Recycling Unit Hacks . | . . Scanalyzer . | . . Garrison Access Hacks . | . . Unauthorized Hacks . | . . Terminals . | . . Fabricators . | . . Repair Stations . | . . Recycling Units . | . . Scanalyzers . | . . Garrison Access . | . . Data Cores Recovered . | . . Used . | . . Hacking Detections 2 | . 2 Full Trace Events 2 | . 2 Feedback Events . | . . Feedback Blocked . | . . Robot Schematics Acquired . | . . Robots Built . | . . Authchips . | . . Time . | . . Total Robot Build Rating . | . . Part Schematics Acquired . | . . Parts Built . | . . Authchips . | . . Time . | . . Total Part Build Rating . | . . Parts Repaired . | . . Time . | . . Parts Recycled . | . . Recycled Matter . | . . Retrieved Matter . | . . Retrieved Components . | . . Parts Scanalyzed . | . . Part Schematics Acquired . | . . Parts Damaged . | . . Bothacking | -11 -10 ------------ Run | Yrd Mat Used RIF Installer . | . . Robots Hacked . | . . Non-combat . | . . Combat . | . . Robot Hacks Applied . | . . Relay Couplers Released . | . . Fabnet Peak Effective % . | . . Robots Rewired . | . . Allies Hacked . | . . Hacks Repelled . | . . Allies | -11 -10 -------- Run | Yrd Mat Total Allies . | . . Largest Group . | . . Highest-Rated Group . | . . Highest-Rated Ally . | . . Total Orders . | . . Ally Attacks . | . . Total Damage . | . . Kills . | . . Allies Corrupted . | . . Allies Melted . | . . Intel | -11 -10 ------- Run | Yrd Mat Robot Analysis Total . | . . Derelict Logs Recovered . | . . Drone Launches . | . . Drone Recoveries . | . . Exploration | -11 -10 ------------- Run | Yrd Mat Turns Passed 1806 | 540 1266 Spaces Moved 391 | 249 142 Core 7 | 3 4 Treads 384 | 246 138 Legs . | . . Wheels . | . . Hover . | . . Flight . | . . Fastest Speed 50 | 50 50 Average Speed 158 | 158 156 Slowest Speed 160 | 160 160 Overloaded Moves . | . . Propulsion Burnouts . | . . Robots Hopped . | . . Cave-ins Triggered 7 | . 7 Exploration Rate (%) 15 | 13 18 Regions Visited 1 Branch Regions . Pre-discovered Areas . | . . Known Exits Taken . | . . Unknown Exits Taken 1 | 1 . Scrap Searched . | . . Spaces Dug 34 | 2 32 Terrain Destroyed 38 | 6 32 Melee . | . . Projectile 38 | 6 32 AOE . | . . Terrain Rammed . | . . Walls Destroyed . | . . Machines Disabled . | . . Actions | -11 -10 --------- Run | Yrd Mat Total 1289 | 298 991 Wait 768 | . 768 Move 390 | 248 142 Hop . | . . Pick Up 5 | 5 . Fast Attach 9 | 8 1 Attach 7 | 1 6 Detach 1 | . 1 Swap 6 | 2 4 Drop 3 | 2 1 Fire 98 | 32 66 Melee . | . . Ram . | . . Kick . | . . Crush 2 | . 2 Escape Stasis . | . . Rewire . | . . Trap . | . . Miscellaneous . | . . Route ------- -11/Scrapyard -10/Materials (discovered 1 exit: [*Min]) History --------- Turn | Location | Event 11 | -11/Scrapyard | Discovered new exit (range 16) 541 | -11/Scrapyard | Entered Materials 541 | -10/Materials | Discovered new exit (range 15) 542 | -10/Materials | Build established: Mutant 945 | -10/Materials | Crushed by falling debris 987 | -10/Materials | Crushed by falling debris 987 | -10/Materials | Core integrity fell below 50% 987 | -10/Materials | System corruption reached 10% 1018 | -10/Materials | Lost 3 parts (1p1u1w) 1748 | -10/Materials | Crushed by falling debris 1748 | -10/Materials | Core integrity fell below 20% 1778 | -10/Materials | Crushed by falling debris 1801 | -10/Materials | Crushed by falling debris 1804 | -10/Materials | Crushed by falling debris 1808 | -10/Materials | Crushed by falling debris 1808 | -10/Materials | Smashed by cave-in Last Messages --------------- 01777_ System corrupted: Sml. Laser failed to cycle. 01778_ The unstable cave ceiling collapses. 01778_ Crushed by falling debris. 01778_ Heat Sink destroyed. 01778_ System corrupted by crushing effect (+2). 01778_ Sml. Laser destroyed. 01778_ System corrupted by crushing effect (+1). 01778_ Lgt. Treads destroyed. 01778_ System corrupted by crushing effect (+1). 01790_ System corrupted: FCS attempts to trigger Sml. Laser. 01790_ System corrupted: Sml. Laser misfires. 01801_ The unstable cave ceiling collapses. 01801_ Crushed by falling debris. 01804_ The unstable cave ceiling collapses. 01804_ Crushed by falling debris. 01804_ Sml. Storage Unit destroyed. 01804_ System corrupted by crushing effect (+2). 01805_ System corrupted: Energy discharge (-26). 01808_ The unstable cave ceiling collapses. 01808_ Crushed by falling debris. Map ----- +----------------------------------------------------+ | ???????????????????????????? | | ???????????????????????????? | | ???????????????????????????? | | ???????????????????????????? | | ???????????????????????????? | | ???????????????????????????? | | ???????????????????????????? | | ?????????????????????+?????? | | ????????????????????? ?????? | | ????????????????????# ?????? | | ??###???????????????# ####?? | | ### ####????????????#^ ? | | # # # #????????????# | | #######?????????????# "" | | # T ##?????????????# T" | | # #######????????# "" | | # % # #???????## | | # %# ######### ^ | | # + % | | # # ######### """ | | # # # # """ | | # ## ## # """ | | # ## ## # """ | | ####### ## """ / | | ###### # """ # | | ###@## # """ ###+##### | | ###### < +% !% #???????? | | # ##?# # = #???????? | | ##???# # %* #???????? | | ?????## ## #""" #? | | ??????# ## "T" + #? | | ??????# ##########! #? | | ??????# #????###??#####+#? | | ####### #????????????????? | | # # #????????????????? | | # # #????????????????? | | # # #????????????????? | | # """ # #????????????????? | | # """ # #????????????????? | | # """ + #????????????????? | | # # #????????????????? | | # """ # #????????????????? | | # """ # #????????????????? | | # """ #####????????????????? | | # #????????????????????? | | # #????????????????????? | | #######????????????????????? | | ???????????????????????????? | | ???????????????????????????? | | ???????????????????????????? | +----------------------------------------------------+ Best States ------------- Heat Dissipation 35 Energy Generation 10 Energy Capacity 250 Matter Stores 300 Matter Capacity 300 Sight Range 16 Terrain Scan Density 10 Evasion (%) 50 Recoil Reduction 2 Item Schematics ----------------- None Robot Schematics ------------------ None Fabricated ------------ Nothing Alien Tech Used ----------------- None Achievements -------------- System Compromised Unlikely Earthworm Challenges ------------ None Game ------ Seed ArmorChipSaw Manual? 0 Play Time 00:17:38 Cumulative 1.9 hours Start 2024.12.07 @ 14:56:48 End 2024.12.07 @ 19:01:53 Sessions 2 Manual Loads 0 Difficulty Rogue Special Mode None Game No. 4 Rogue 4 Adventurer 0 Explorer 0 Win Type - Total 0 Types 0/0/0/0/0/0/0/0/0 Lore% 1 Gallery% 2 Achievement% 4 Wizard Run 0 Options --------- Layout 0 ASCII 0 Keyboard 0 Movement Mouse Keybinds 0 Fullscreen 1 Font 36/Smallcaps Map View 38x25 Zoom Use 87% Tactical HUD 1 Map Filters NONE Filters NONE Steam 1 RUN: 06bf48c3-9817-4f63-9ce4-0e366d489624